[Event "Titled Tuesday Blitz June 20 Early 2023"]
[White "Slovineanu, Viacheslav"]
[Black "Gontcharov, Vladislav"]
[WhiteFideId "13900510"]
[BlackFideId "4123492"]
[WhiteElo "2312"]
[BlackElo "2420"]
[Result "0-1"]
[Round "1"]
[TimeControl "180+2"]
[Date "2023.06.20"]
[WhiteClock "0:00:00"]
[BlackClock "0:00:16"]
[Board "180"]

1. e4 {[%clk 0:02:57]}  e6 {[%clk 0:02:56]} 2. d4 {[%clk 0:02:55]}  d5 {[%clk 0:02:56]} 3. Nc3 {[%clk 0:02:53]}  Bb4 {[%clk 0:02:55]} 4. e5 {[%clk 0:02:52]}  c5 {[%clk 0:02:53]} 5. a3 {[%clk 0:02:52]}  Bxc3+ {[%clk 0:02:53]} 6. bxc3 {[%clk 0:02:52]}  Ne7 {[%clk 0:02:53]} 7. Qg4 {[%clk 0:02:50]}  O-O {[%clk 0:02:52]} 8. h4 {[%clk 0:02:40]}  Nbc6 {[%clk 0:02:48]} 9. Nf3 {[%clk 0:02:38]}  f5 {[%clk 0:02:46]} 10. Qg3 {[%clk 0:02:35]}  Qa5 {[%clk 0:02:34]} 11. Bd2 {[%clk 0:02:33]}  Qa4 {[%clk 0:02:33]} 12. Bd3 {[%clk 0:01:52]}  c4 {[%clk 0:02:25]} 13. Be2 {[%clk 0:01:49]}  Qxc2 {[%clk 0:02:25]} 14. Rc1 {[%clk 0:01:39]}  Qe4 {[%clk 0:01:42]} 15. Ng5 {[%clk 0:01:36]}  f4 {[%clk 0:01:42]} 16. Nxe4 {[%clk 0:01:27]}  fxg3 {[%clk 0:01:41]} 17. Nxg3 {[%clk 0:01:24]}  Bd7 {[%clk 0:01:37]} 18. f4 {[%clk 0:01:15]}  h6 {[%clk 0:01:27]} 19. O-O {[%clk 0:01:09]}  b5 {[%clk 0:01:23]} 20. Ra1 {[%clk 0:01:03]}  a5 {[%clk 0:01:22]} 21. Rfb1 {[%clk 0:01:02]}  Rab8 {[%clk 0:01:22]} 22. Kf2 {[%clk 0:00:50]}  Rb6 {[%clk 0:01:14]} 23. Ke3 {[%clk 0:00:46]}  Rfb8 {[%clk 0:01:12]} 24. Bd1 {[%clk 0:00:42]}  Be8 {[%clk 0:01:06]} 25. Bc2 {[%clk 0:00:38]}  Bg6 {[%clk 0:00:59]} 26. Bxg6 {[%clk 0:00:33]}  Nxg6 {[%clk 0:00:59]} 27. h5 {[%clk 0:00:34]}  Nge7 {[%clk 0:00:58]} 28. Ne2 {[%clk 0:00:22]}  b4 {[%clk 0:00:56]} 29. axb4 {[%clk 0:00:20]}  axb4 {[%clk 0:00:56]} 30. cxb4 {[%clk 0:00:18]}  Nf5+ {[%clk 0:00:30]} 31. Kf2 {[%clk 0:00:12]}  Nxb4 {[%clk 0:00:27]} 32. Bxb4 {[%clk 0:00:10]}  Rxb4 {[%clk 0:00:27]} 33. Rxb4 {[%clk 0:00:09]}  Rxb4 {[%clk 0:00:28]} 34. Ra8+ {[%clk 0:00:08]}  Kf7 {[%clk 0:00:27]} 35. Ra7+ {[%clk 0:00:08]}  Ne7 {[%clk 0:00:27]} 36. g4 {[%clk 0:00:05]}  Ke8 {[%clk 0:00:21]} 37. Ng3 {[%clk 0:00:03]}  c3 {[%clk 0:00:20]} 38. Rc7 {[%clk 0:00:00]}  Rxd4 {[%clk 0:00:16]} 0-1


[Site "https://www.chess.com"]

[Event "Titled Tuesday Blitz June 20 Early 2023"]
[White "Hajiyev, Kanan"]
[Black "Kuzmin, Ilya"]
[WhiteFideId "13404148"]
[BlackFideId "4153863"]
[WhiteElo "2115"]
[BlackElo "2093"]
[Result "1/2-1/2"]
[Round "1"]
[TimeControl "180+2"]
[Date "2023.06.20"]
[WhiteClock "0:00:17"]
[BlackClock "0:00:59"]
[Board "181"]

1. d4 {[%clk 0:02:54]}  Nf6 {[%clk 0:02:59]} 2. Nf3 {[%clk 0:02:54]}  c5 {[%clk 0:03:00]} 3. e3 {[%clk 0:02:53]}  d5 {[%clk 0:02:59]} 4. c4 {[%clk 0:02:51]}  cxd4 {[%clk 0:02:58]} 5. Nxd4 {[%clk 0:02:48]}  Nc6 {[%clk 0:02:59]} 6. cxd5 {[%clk 0:02:45]}  Nxd4 {[%clk 0:02:57]} 7. Qa4+ {[%clk 0:02:24]}  Qd7 {[%clk 0:02:49]} 8. Qxd4 {[%clk 0:02:22]}  Qxd5 {[%clk 0:02:49]} 9. Qxd5 {[%clk 0:02:17]}  Nxd5 {[%clk 0:02:49]} 10. Bd2 {[%clk 0:02:17]}  Bd7 {[%clk 0:02:46]} 11. Bc4 {[%clk 0:02:13]}  Nb6 {[%clk 0:02:42]} 12. Be2 {[%clk 0:01:58]}  Bc6 {[%clk 0:02:41]} 13. f3 {[%clk 0:01:52]}  e6 {[%clk 0:02:41]} 14. Nc3 {[%clk 0:01:51]}  Bb4 {[%clk 0:02:35]} 15. a3 {[%clk 0:01:47]}  Be7 {[%clk 0:02:29]} 16. O-O-O {[%clk 0:01:36]}  O-O-O {[%clk 0:02:27]} 17. e4 {[%clk 0:01:35]}  Bc5 {[%clk 0:02:18]} 18. Bf4 {[%clk 0:01:11]}  f6 {[%clk 0:02:14]} 19. Rxd8+ {[%clk 0:01:09]}  Rxd8 {[%clk 0:02:14]} 20. Rd1 {[%clk 0:01:08]}  e5 {[%clk 0:02:12]} 21. Bg3 {[%clk 0:01:06]}  Rxd1+ {[%clk 0:02:05]} 22. Kxd1 {[%clk 0:01:04]}  Kd7 {[%clk 0:01:59]} 23. Bb5 {[%clk 0:01:03]}  Bd4 {[%clk 0:01:57]} 24. Bxc6+ {[%clk 0:00:53]}  Kxc6 {[%clk 0:01:57]} 25. Kc2 {[%clk 0:00:54]}  Nc4 {[%clk 0:01:56]} 26. Nd1 {[%clk 0:00:51]}  b5 {[%clk 0:01:54]} 27. h3 {[%clk 0:00:38]}  h5 {[%clk 0:01:53]} 28. Be1 {[%clk 0:00:36]}  a5 {[%clk 0:01:49]} 29. Bc3 {[%clk 0:00:23]}  Kc5 {[%clk 0:01:49]} 30. Kd3 {[%clk 0:00:21]}  Bg1 {[%clk 0:01:43]} 31. Bd2 {[%clk 0:00:16]}  a4 {[%clk 0:01:39]} 32. Bc1 {[%clk 0:00:14]}  Bd4 {[%clk 0:01:37]} 33. Nc3 {[%clk 0:00:14]}  Bxc3 {[%clk 0:01:38]} 34. Kxc3 {[%clk 0:00:14]}  Na5 {[%clk 0:01:35]} 35. Kd3 {[%clk 0:00:14]}  Nc4 {[%clk 0:01:35]} 36. Kc3 {[%clk 0:00:14]}  g5 {[%clk 0:01:34]} 37. g4 {[%clk 0:00:14]}  h4 {[%clk 0:01:29]} 38. Kd3 {[%clk 0:00:14]}  b4 {[%clk 0:01:28]} 39. Be3+ {[%clk 0:00:11]}  Kb5 {[%clk 0:01:28]} 40. Bc1 {[%clk 0:00:09]}  Nb6 {[%clk 0:01:21]} 41. Kc2 {[%clk 0:00:03]}  Kc4 {[%clk 0:01:17]} 42. axb4 {[%clk 0:00:03]}  Kxb4 {[%clk 0:01:16]} 43. Kd3 {[%clk 0:00:04]}  Nc4 {[%clk 0:01:16]} 44. Kc2 {[%clk 0:00:03]}  Nd6 {[%clk 0:01:08]} 45. Bd2+ {[%clk 0:00:03]}  Kc4 {[%clk 0:01:09]} 46. Ba5 {[%clk 0:00:03]}  Nb5 {[%clk 0:01:08]} 47. Bd8 {[%clk 0:00:02]}  Nd4+ {[%clk 0:01:09]} 48. Kc1 {[%clk 0:00:02]}  Nxf3 {[%clk 0:01:07]} 49. Bxf6 {[%clk 0:00:03]}  Kd3 {[%clk 0:01:06]} 50. Kb1 {[%clk 0:00:02]}  Kxe4 {[%clk 0:01:05]} 51. Ka2 {[%clk 0:00:03]}  Kd3 {[%clk 0:01:04]} 52. Ka3 {[%clk 0:00:03]}  e4 {[%clk 0:01:05]} 53. Kxa4 {[%clk 0:00:03]}  e3 {[%clk 0:01:05]} 54. b4 {[%clk 0:00:03]}  e2 {[%clk 0:01:05]} 55. b5 {[%clk 0:00:01]}  e1=Q {[%clk 0:01:04]} 56. b6 {[%clk 0:00:01]}  Qd1+ {[%clk 0:01:03]} 57. Kb5 {[%clk 0:00:02]}  Qb3+ {[%clk 0:01:02]} 58. Kc6 {[%clk 0:00:03]}  Qc4+ {[%clk 0:01:02]} 59. Kb7 {[%clk 0:00:03]}  Qf7+ {[%clk 0:01:02]} 60. Ka8 {[%clk 0:00:03]}  Qxf6 {[%clk 0:01:02]} 61. b7 {[%clk 0:00:04]}  Qc6 {[%clk 0:01:03]} 62. Ka7 {[%clk 0:00:04]}  Qc7 {[%clk 0:01:03]} 63. Ka8 {[%clk 0:00:05]}  Ke3 {[%clk 0:01:02]} 64. b8=Q {[%clk 0:00:05]}  Qxb8+ {[%clk 0:01:02]} 65. Kxb8 {[%clk 0:00:06]}  Ng1 {[%clk 0:01:02]} 66. Kc7 {[%clk 0:00:07]}  Nxh3 {[%clk 0:01:03]} 67. Kd6 {[%clk 0:00:08]}  Kf4 {[%clk 0:01:03]} 68. Kd5 {[%clk 0:00:08]}  Kxg4 {[%clk 0:01:04]} 69. Kd4 {[%clk 0:00:09]}  Nf4 {[%clk 0:01:04]} 70. Ke3 {[%clk 0:00:10]}  h3 {[%clk 0:01:05]} 71. Kf2 {[%clk 0:00:11]}  Kh4 {[%clk 0:01:05]} 72. Kg1 {[%clk 0:00:11]}  g4 {[%clk 0:01:05]} 73. Kh1 {[%clk 0:00:12]}  g3 {[%clk 0:01:05]} 74. Kg1 {[%clk 0:00:13]}  Nh5 {[%clk 0:01:03]} 75. Kh1 {[%clk 0:00:14]}  Kg4 {[%clk 0:01:03]} 76. Kg1 {[%clk 0:00:14]}  Nf4 {[%clk 0:00:59]} 77. Kh1 {[%clk 0:00:15]}  g2+ {[%clk 0:00:59]} 78. Kg1 {[%clk 0:00:16]}  Ne2+ {[%clk 0:00:59]} 79. Kf2 {[%clk 0:00:15]}  g1=Q+ {[%clk 0:00:59]} 80. Kxe2 {[%clk 0:00:16]}  h2 {[%clk 0:00:59]} 81. Kd3 {[%clk 0:00:16]}  h1=Q {[%clk 0:00:59]} 82. Kc4 {[%clk 0:00:16]}  Qf3 {[%clk 0:01:00]} 83. Kb5 {[%clk 0:00:17]}  Qe1 {[%clk 0:01:00]} 84. Ka4 {[%clk 0:00:17]}  Qd3 {[%clk 0:00:59]} 1/2-1/2


[Site "https://www.chess.com"]

[Event "Titled Tuesday Blitz June 20 Early 2023"]
[White "Rodriguez Polo, Mateo"]
[Black "Belov, Alexei"]
[WhiteFideId "24509396"]
[BlackFideId "4128206"]
[WhiteElo "2117"]
[BlackElo "2590"]
[Result "1-0"]
[Round "1"]
[TimeControl "180+2"]
[Date "2023.06.20"]
[WhiteClock "0:00:20"]
[BlackClock "0:00:19"]
[Board "182"]

1. Nf3 {[%clk 0:02:59]}  d5 {[%clk 0:02:59]} 2. c4 {[%clk 0:02:59]}  e6 {[%clk 0:02:59]} 3. g3 {[%clk 0:02:59]}  Nf6 {[%clk 0:02:59]} 4. Bg2 {[%clk 0:02:59]}  Be7 {[%clk 0:02:59]} 5. O-O {[%clk 0:02:59]}  O-O {[%clk 0:03:00]} 6. b3 {[%clk 0:02:59]}  c5 {[%clk 0:03:00]} 7. Bb2 {[%clk 0:02:59]}  dxc4 {[%clk 0:02:59]} 8. bxc4 {[%clk 0:02:59]}  Nc6 {[%clk 0:03:00]} 9. Ne5 {[%clk 0:02:59]}  Nxe5 {[%clk 0:02:46]} 10. Bxe5 {[%clk 0:03:00]}  Nd7 {[%clk 0:02:44]} 11. Bb2 {[%clk 0:02:57]}  Bf6 {[%clk 0:02:44]} 12. Qc2 {[%clk 0:02:55]}  Qc7 {[%clk 0:02:34]} 13. Bxf6 {[%clk 0:02:52]}  Nxf6 {[%clk 0:02:34]} 14. Nc3 {[%clk 0:02:53]}  Bd7 {[%clk 0:02:30]} 15. Rab1 {[%clk 0:02:31]}  Rab8 {[%clk 0:02:27]} 16. Nb5 {[%clk 0:02:29]}  Qa5 {[%clk 0:02:17]} 17. Qc3 {[%clk 0:02:14]}  Qxc3 {[%clk 0:02:14]} 18. Nxc3 {[%clk 0:02:15]}  b6 {[%clk 0:02:14]} 19. a4 {[%clk 0:02:12]}  Rfc8 {[%clk 0:02:03]} 20. Rb2 {[%clk 0:02:11]}  Bc6 {[%clk 0:01:57]} 21. Bxc6 {[%clk 0:02:09]}  Rxc6 {[%clk 0:01:57]} 22. a5 {[%clk 0:02:09]}  Nd7 {[%clk 0:01:52]} 23. Rfb1 {[%clk 0:02:06]}  Kf8 {[%clk 0:01:45]} 24. d3 {[%clk 0:02:04]}  Ke7 {[%clk 0:01:44]} 25. Nb5 {[%clk 0:02:04]}  a6 {[%clk 0:01:38]} 26. Nc3 {[%clk 0:01:50]}  Kd6 {[%clk 0:01:30]} 27. Kf1 {[%clk 0:01:21]}  Kc7 {[%clk 0:01:27]} 28. Ke1 {[%clk 0:01:06]}  bxa5 {[%clk 0:01:27]} 29. Rxb8 {[%clk 0:01:05]}  Nxb8 {[%clk 0:01:27]} 30. Na4 {[%clk 0:00:56]}  Nd7 {[%clk 0:01:24]} 31. Kd2 {[%clk 0:00:53]}  Nb6 {[%clk 0:01:24]} 32. Nc3 {[%clk 0:00:48]}  a4 {[%clk 0:01:19]} 33. Ra1 {[%clk 0:00:48]}  Rd6 {[%clk 0:01:14]} 34. Kc2 {[%clk 0:00:46]}  f5 {[%clk 0:01:05]} 35. Nxa4 {[%clk 0:00:44]}  Nxa4 {[%clk 0:01:05]} 36. Rxa4 {[%clk 0:00:45]}  Rb6 {[%clk 0:01:06]} 37. Ra5 {[%clk 0:00:43]}  Rc6 {[%clk 0:01:03]} 38. Kc3 {[%clk 0:00:41]}  g5 {[%clk 0:01:02]} 39. e3 {[%clk 0:00:41]}  g4 {[%clk 0:01:02]} 40. d4 {[%clk 0:00:41]}  cxd4+ {[%clk 0:00:59]} 41. exd4 {[%clk 0:00:41]}  Kb6 {[%clk 0:00:57]} 42. Ra2 {[%clk 0:00:36]}  a5 {[%clk 0:00:54]} 43. c5+ {[%clk 0:00:37]}  Ka6 {[%clk 0:00:54]} 44. Kc4 {[%clk 0:00:37]}  Rc8 {[%clk 0:00:50]} 45. Re2 {[%clk 0:00:37]}  Re8 {[%clk 0:00:47]} 46. Rb2 {[%clk 0:00:32]}  f4 {[%clk 0:00:41]} 47. Rb6+ {[%clk 0:00:31]}  Ka7 {[%clk 0:00:41]} 48. Kb5 {[%clk 0:00:30]}  fxg3 {[%clk 0:00:40]} 49. fxg3 {[%clk 0:00:30]}  Rd8 {[%clk 0:00:40]} 50. Rxe6 {[%clk 0:00:23]}  Rxd4 {[%clk 0:00:40]} 51. Re7+ {[%clk 0:00:23]}  Kb8 {[%clk 0:00:39]} 52. Kxa5 {[%clk 0:00:23]}  Rd2 {[%clk 0:00:37]} 53. Rxh7 {[%clk 0:00:20]}  Rb2 {[%clk 0:00:35]} 54. c6 {[%clk 0:00:20]}  Kc8 {[%clk 0:00:34]} 55. Rg7 {[%clk 0:00:18]}  Rxh2 {[%clk 0:00:33]} 56. Rxg4 {[%clk 0:00:19]}  Kc7 {[%clk 0:00:31]} 57. Rg6 {[%clk 0:00:17]}  Rb2 {[%clk 0:00:30]} 58. g4 {[%clk 0:00:18]}  Rc2 {[%clk 0:00:30]} 59. Kb5 {[%clk 0:00:17]}  Rb2+ {[%clk 0:00:30]} 60. Kc5 {[%clk 0:00:18]}  Rc2+ {[%clk 0:00:30]} 61. Kd5 {[%clk 0:00:18]}  Rd2+ {[%clk 0:00:30]} 62. Ke5 {[%clk 0:00:19]}  Re2+ {[%clk 0:00:30]} 63. Kf5 {[%clk 0:00:19]}  Ra2 {[%clk 0:00:30]} 64. Kg5 {[%clk 0:00:19]}  Ra5+ {[%clk 0:00:30]} 65. Kh6 {[%clk 0:00:19]}  Ra1 {[%clk 0:00:29]} 66. g5 {[%clk 0:00:19]}  Rh1+ {[%clk 0:00:29]} 67. Kg7 {[%clk 0:00:19]}  Rf1 {[%clk 0:00:30]} 68. Rf6 {[%clk 0:00:19]}  Rg1 {[%clk 0:00:31]} 69. g6 {[%clk 0:00:19]}  Rg2 {[%clk 0:00:19]} 70. Kf7 {[%clk 0:00:20]} 1-0


[Site "https://www.chess.com"]

[Event "Titled Tuesday Blitz June 20 Early 2023"]
[White "Rodriguez Santiago, Jaime"]
[Black "Becerra, Juan David"]
[WhiteFideId "3100898"]
[BlackFideId "4404998"]
[WhiteElo "2025"]
[BlackElo "2304"]
[Result "0-1"]
[Round "1"]
[TimeControl "180+2"]
[Date "2023.06.20"]
[WhiteClock "0:00:15"]
[BlackClock "0:00:41"]
[Board "186"]

1. c4 {[%clk 0:01:59]}  e6 {[%clk 0:02:53]} 2. Nf3 {[%clk 0:01:55]}  Nf6 {[%clk 0:02:52]} 3. g3 {[%clk 0:01:46]}  b6 {[%clk 0:02:52]} 4. Bg2 {[%clk 0:01:45]}  Bb7 {[%clk 0:02:52]} 5. O-O {[%clk 0:01:45]}  Be7 {[%clk 0:02:53]} 6. b3 {[%clk 0:01:45]}  O-O {[%clk 0:02:53]} 7. Bb2 {[%clk 0:01:44]}  c5 {[%clk 0:02:52]} 8. e3 {[%clk 0:01:44]}  d6 {[%clk 0:02:51]} 9. Qe2 {[%clk 0:01:43]}  Nbd7 {[%clk 0:02:51]} 10. d3 {[%clk 0:01:43]}  a6 {[%clk 0:02:50]} 11. Nc3 {[%clk 0:01:41]}  Ra7 {[%clk 0:02:50]} 12. Rad1 {[%clk 0:01:40]}  Qa8 {[%clk 0:02:51]} 13. Ne1 {[%clk 0:01:36]}  Bxg2 {[%clk 0:02:49]} 14. Nxg2 {[%clk 0:01:36]}  Re8 {[%clk 0:02:36]} 15. f4 {[%clk 0:01:36]}  d5 {[%clk 0:02:34]} 16. g4 {[%clk 0:01:30]}  d4 {[%clk 0:02:25]} 17. exd4 {[%clk 0:01:20]}  cxd4 {[%clk 0:02:25]} 18. Ne4 {[%clk 0:01:18]}  Nxe4 {[%clk 0:02:12]} 19. dxe4 {[%clk 0:01:19]}  e5 {[%clk 0:02:12]} 20. f5 {[%clk 0:01:16]}  Nc5 {[%clk 0:02:08]} 21. Rfe1 {[%clk 0:01:03]}  a5 {[%clk 0:02:02]} 22. Bc1 {[%clk 0:00:50]}  Qd8 {[%clk 0:01:57]} 23. Qf3 {[%clk 0:00:45]}  h6 {[%clk 0:01:32]} 24. h3 {[%clk 0:00:40]}  Bg5 {[%clk 0:01:31]} 25. Bxg5 {[%clk 0:00:40]}  hxg5 {[%clk 0:01:31]} 26. h4 {[%clk 0:00:40]}  gxh4 {[%clk 0:01:27]} 27. Qh3 {[%clk 0:00:40]}  Qg5 {[%clk 0:01:25]} 28. Nxh4 {[%clk 0:00:39]}  Qf4 {[%clk 0:01:08]} 29. Rf1 {[%clk 0:00:22]}  Qxe4 {[%clk 0:00:57]} 30. Rde1 {[%clk 0:00:22]}  Qd3 {[%clk 0:00:57]} 31. Rf3 {[%clk 0:00:23]}  Qd2 {[%clk 0:00:56]} 32. Ref1 {[%clk 0:00:22]}  e4 {[%clk 0:00:54]} 33. Ng6 {[%clk 0:00:22]}  Qh6 {[%clk 0:00:46]} 34. Qxh6 {[%clk 0:00:20]}  gxh6 {[%clk 0:00:47]} 35. Rh3 {[%clk 0:00:18]}  fxg6 {[%clk 0:00:46]} 36. Rxh6 {[%clk 0:00:19]}  gxf5 {[%clk 0:00:44]} 37. Rxf5 {[%clk 0:00:19]}  Rg7 {[%clk 0:00:43]} 38. Rxb6 {[%clk 0:00:18]}  e3 {[%clk 0:00:42]} 39. Kf1 {[%clk 0:00:15]}  e2+ {[%clk 0:00:41]} 0-1


[Site "https://www.chess.com"]

[Event "Titled Tuesday Blitz June 20 Early 2023"]
[White "AyMitecK"]
[Black "Wang, Alexander J"]
[BlackFideId "30955270"]
[WhiteElo "2585"]
[BlackElo "2266"]
[Result "0-1"]
[Round "1"]
[TimeControl "180+2"]
[Date "2023.06.20"]
[WhiteClock "0:00:29"]
[BlackClock "0:00:15"]
[Board "187"]

1. e4 {[%clk 0:03:00]}  c5 {[%clk 0:02:57]} 2. Nf3 {[%clk 0:03:00]}  d6 {[%clk 0:02:57]} 3. Bb5+ {[%clk 0:03:01]}  Bd7 {[%clk 0:02:57]} 4. Bxd7+ {[%clk 0:03:01]}  Qxd7 {[%clk 0:02:58]} 5. O-O {[%clk 0:03:01]}  Nc6 {[%clk 0:02:58]} 6. Re1 {[%clk 0:03:02]}  Nf6 {[%clk 0:02:55]} 7. c3 {[%clk 0:03:03]}  e6 {[%clk 0:02:52]} 8. d4 {[%clk 0:03:04]}  cxd4 {[%clk 0:02:47]} 9. cxd4 {[%clk 0:03:05]}  d5 {[%clk 0:02:47]} 10. e5 {[%clk 0:03:05]}  Ne4 {[%clk 0:02:46]} 11. Nc3 {[%clk 0:03:06]}  Nxc3 {[%clk 0:02:45]} 12. bxc3 {[%clk 0:03:07]}  Be7 {[%clk 0:02:45]} 13. Re3 {[%clk 0:03:08]}  Na5 {[%clk 0:02:36]} 14. Ne1 {[%clk 0:03:09]}  Nc4 {[%clk 0:02:33]} 15. Rg3 {[%clk 0:03:09]}  g6 {[%clk 0:02:33]} 16. Nd3 {[%clk 0:03:05]}  Rc8 {[%clk 0:02:07]} 17. Rb1 {[%clk 0:03:01]}  b6 {[%clk 0:02:05]} 18. Rf3 {[%clk 0:02:53]}  Ba3 {[%clk 0:01:51]} 19. Bg5 {[%clk 0:02:46]}  Be7 {[%clk 0:01:42]} 20. Bh6 {[%clk 0:02:43]}  Rg8 {[%clk 0:01:38]} 21. Qc1 {[%clk 0:02:26]}  Bf8 {[%clk 0:01:18]} 22. Bxf8 {[%clk 0:02:23]}  Rxf8 {[%clk 0:01:18]} 23. Qg5 {[%clk 0:02:21]}  Qe7 {[%clk 0:01:18]} 24. Qh6 {[%clk 0:02:11]}  Kd7 {[%clk 0:01:11]} 25. h3 {[%clk 0:01:53]}  Rh8 {[%clk 0:00:50]} 26. Qg7 {[%clk 0:01:47]}  Rhf8 {[%clk 0:00:50]} 27. Qxh7 {[%clk 0:01:44]}  Nd2 {[%clk 0:00:49]} 28. Rc1 {[%clk 0:01:35]}  Nxf3+ {[%clk 0:00:49]} 29. gxf3 {[%clk 0:01:36]}  Rh8 {[%clk 0:00:47]} 30. Qg7 {[%clk 0:01:36]}  Rcg8 {[%clk 0:00:43]} 31. Qf6 {[%clk 0:01:36]}  Qxf6 {[%clk 0:00:42]} 32. exf6 {[%clk 0:01:37]}  Rxh3 {[%clk 0:00:42]} 33. Ne5+ {[%clk 0:01:37]}  Ke8 {[%clk 0:00:42]} 34. c4 {[%clk 0:01:29]}  Rgh8 {[%clk 0:00:42]} 35. Rc3 {[%clk 0:01:27]}  Rh1+ {[%clk 0:00:34]} 36. Kg2 {[%clk 0:01:27]}  R8h2+ {[%clk 0:00:34]} 37. Kg3 {[%clk 0:01:27]}  Rh3+ {[%clk 0:00:33]} 38. Kf4 {[%clk 0:01:24]}  Rh4+ {[%clk 0:00:25]} 39. Ke3 {[%clk 0:01:19]}  Re1+ {[%clk 0:00:25]} 40. Kd2 {[%clk 0:01:19]}  Ra1 {[%clk 0:00:22]} 41. cxd5 {[%clk 0:01:16]}  Rxd4+ {[%clk 0:00:22]} 42. Ke3 {[%clk 0:01:15]}  Rxd5 {[%clk 0:00:22]} 43. Rc8+ {[%clk 0:01:13]}  Rd8 {[%clk 0:00:22]} 44. Rxd8+ {[%clk 0:01:00]}  Kxd8 {[%clk 0:00:23]} 45. Nxf7+ {[%clk 0:01:01]}  Ke8 {[%clk 0:00:23]} 46. Ne5 {[%clk 0:00:53]}  Rxa2 {[%clk 0:00:22]} 47. Kf4 {[%clk 0:00:54]}  Re2 {[%clk 0:00:18]} 48. Nc4 {[%clk 0:00:49]}  Kf7 {[%clk 0:00:16]} 49. Kg5 {[%clk 0:00:48]}  Rxf2 {[%clk 0:00:13]} 50. Nd6+ {[%clk 0:00:48]}  Kf8 {[%clk 0:00:13]} 51. Kxg6 {[%clk 0:00:47]}  a5 {[%clk 0:00:13]} 52. Nc4 {[%clk 0:00:45]}  a4 {[%clk 0:00:12]} 53. Nxb6 {[%clk 0:00:45]}  Rd2 {[%clk 0:00:12]} 54. Nxa4 {[%clk 0:00:44]}  Rg2+ {[%clk 0:00:11]} 55. Kh5 {[%clk 0:00:43]}  Kf7 {[%clk 0:00:12]} 56. Nc5 {[%clk 0:00:43]}  Kxf6 {[%clk 0:00:12]} 57. Kh4 {[%clk 0:00:41]}  Rg1 {[%clk 0:00:11]} 58. Kh3 {[%clk 0:00:40]}  Kf5 {[%clk 0:00:11]} 59. Kh2 {[%clk 0:00:39]}  Rg8 {[%clk 0:00:10]} 60. Kh3 {[%clk 0:00:39]}  e5 {[%clk 0:00:11]} 61. Nd3 {[%clk 0:00:31]}  Rg7 {[%clk 0:00:11]} 62. Kh2 {[%clk 0:00:30]}  Rd7 {[%clk 0:00:11]} 63. Nc5 {[%clk 0:00:29]}  Rd2+ {[%clk 0:00:11]} 64. Kh3 {[%clk 0:00:29]}  Kf4 {[%clk 0:00:12]} 65. Ne4 {[%clk 0:00:28]}  Rd8 {[%clk 0:00:11]} 66. Kg2 {[%clk 0:00:27]}  Rg8+ {[%clk 0:00:11]} 67. Kf2 {[%clk 0:00:27]}  Ra8 {[%clk 0:00:11]} 68. Ke2 {[%clk 0:00:25]}  Ra2+ {[%clk 0:00:11]} 69. Kd3 {[%clk 0:00:16]}  Kxf3 {[%clk 0:00:10]} 70. Ng5+ {[%clk 0:00:16]}  Kf4 {[%clk 0:00:10]} 71. Ne6+ {[%clk 0:00:17]}  Kf5 {[%clk 0:00:11]} 72. Nc5 {[%clk 0:00:17]}  Ra3+ {[%clk 0:00:10]} 73. Ke2 {[%clk 0:00:17]}  Rh3 {[%clk 0:00:11]} 74. Kf2 {[%clk 0:00:17]}  Kf4 {[%clk 0:00:10]} 75. Ne6+ {[%clk 0:00:17]}  Kf5 {[%clk 0:00:10]} 76. Nc5 {[%clk 0:00:17]}  e4 {[%clk 0:00:10]} 77. Ke2 {[%clk 0:00:17]}  Rh8 {[%clk 0:00:10]} 78. Nd7 {[%clk 0:00:17]}  Kf4 {[%clk 0:00:10]} 79. Nc5 {[%clk 0:00:17]}  Rh2+ {[%clk 0:00:10]} 80. Ke1 {[%clk 0:00:18]}  Kf3 {[%clk 0:00:10]} 81. Kd1 {[%clk 0:00:18]}  e3 {[%clk 0:00:10]} 82. Ne6 {[%clk 0:00:17]}  Rh1+ {[%clk 0:00:11]} 83. Kc2 {[%clk 0:00:17]}  e2 {[%clk 0:00:11]} 84. Nd4+ {[%clk 0:00:18]}  Kf2 {[%clk 0:00:12]} 85. Nxe2 {[%clk 0:00:15]}  Kxe2 {[%clk 0:00:13]} 86. Kc3 {[%clk 0:00:16]}  Rd1 {[%clk 0:00:13]} 87. Kc2 {[%clk 0:00:15]}  Rd8 {[%clk 0:00:13]} 88. Kc3 {[%clk 0:00:16]}  Rd7 {[%clk 0:00:12]} 89. Kc4 {[%clk 0:00:17]}  Ke3 {[%clk 0:00:13]} 90. Kc5 {[%clk 0:00:18]}  Ke4 {[%clk 0:00:13]} 91. Kc6 {[%clk 0:00:19]}  Rd1 {[%clk 0:00:13]} 92. Kc5 {[%clk 0:00:20]}  Rd2 {[%clk 0:00:13]} 93. Kc6 {[%clk 0:00:20]}  Ke5 {[%clk 0:00:13]} 94. Kc7 {[%clk 0:00:21]}  Ke6 {[%clk 0:00:13]} 95. Kc8 {[%clk 0:00:22]}  Ke7 {[%clk 0:00:14]} 96. Kb7 {[%clk 0:00:22]}  Rc2 {[%clk 0:00:14]} 97. Kb6 {[%clk 0:00:23]}  Kd7 {[%clk 0:00:14]} 98. Kb5 {[%clk 0:00:24]}  Rc8 {[%clk 0:00:14]} 99. Kb4 {[%clk 0:00:25]}  Kd6 {[%clk 0:00:14]} 100. Kb3 {[%clk 0:00:26]}  Kd5 {[%clk 0:00:15]} 101. Kb4 {[%clk 0:00:27]}  Rc7 {[%clk 0:00:15]} 102. Kb5 {[%clk 0:00:27]}  Rb7+ {[%clk 0:00:15]} 103. Ka6 {[%clk 0:00:28]}  Rb1 {[%clk 0:00:15]} 104. Ka5 {[%clk 0:00:28]}  Kc4 {[%clk 0:00:15]} 105. Ka6 {[%clk 0:00:28]}  Kc5 {[%clk 0:00:15]} 106. Ka5 {[%clk 0:00:29]}  Ra1# {[%clk 0:00:15]} 0-1


[Site "https://www.chess.com"]

[Event "Titled Tuesday Blitz June 20 Early 2023"]
[White "Zaichenko, Daria"]
[Black "Shishkov, Andrei"]
[WhiteFideId "4197453"]
[BlackFideId "4500563"]
[WhiteElo "2039"]
[BlackElo "2228"]
[Result "1-0"]
[Round "1"]
[TimeControl "180+2"]
[Date "2023.06.20"]
[WhiteClock "0:01:17"]
[BlackClock "0:00:03"]
[Board "188"]

1. e4 {[%clk 0:02:58]}  d5 {[%clk 0:03:00]} 2. exd5 {[%clk 0:02:57]}  Nf6 {[%clk 0:03:00]} 3. Bb5+ {[%clk 0:02:56]}  Bd7 {[%clk 0:03:00]} 4. Bxd7+ {[%clk 0:02:56]}  Qxd7 {[%clk 0:02:58]} 5. c4 {[%clk 0:02:56]}  e6 {[%clk 0:02:57]} 6. dxe6 {[%clk 0:02:51]}  fxe6 {[%clk 0:02:51]} 7. d4 {[%clk 0:02:51]}  Nc6 {[%clk 0:02:51]} 8. Nf3 {[%clk 0:02:50]}  Bb4+ {[%clk 0:02:46]} 9. Nc3 {[%clk 0:02:46]}  O-O-O {[%clk 0:02:43]} 10. Be3 {[%clk 0:02:43]}  Ne4 {[%clk 0:02:37]} 11. Qc2 {[%clk 0:02:36]}  Nd6 {[%clk 0:02:21]} 12. Qb3 {[%clk 0:02:22]}  Nf5 {[%clk 0:02:07]} 13. O-O {[%clk 0:01:57]}  h6 {[%clk 0:02:01]} 14. d5 {[%clk 0:01:50]}  Nxe3 {[%clk 0:01:26]} 15. fxe3 {[%clk 0:01:44]}  Bc5 {[%clk 0:01:16]} 16. dxc6 {[%clk 0:01:42]}  Bxe3+ {[%clk 0:01:16]} 17. Kh1 {[%clk 0:01:42]}  Qxc6 {[%clk 0:01:16]} 18. Ne5 {[%clk 0:01:40]}  Qc5 {[%clk 0:00:49]} 19. Nf7 {[%clk 0:01:39]}  Qh5 {[%clk 0:00:32]} 20. c5 {[%clk 0:01:25]}  Rd2 {[%clk 0:00:14]} 21. Qxe6+ {[%clk 0:01:21]}  Kb8 {[%clk 0:00:13]} 22. Qxe3 {[%clk 0:01:17]}  Rxg2 {[%clk 0:00:03]} 23. Kxg2 {[%clk 0:01:17]} 1-0


[Site "https://www.chess.com"]